Cogmind - Beta 16.1 @@@ ROGUE MODE // 2026.04.01 @ 23:17:45 Player: konomiyu Result: Destroyed by P-70 Sage via exploding Fusion Modulator Performance ------------- Evolutions (5) 2500 Regions Visited (10) 2000 Robots Destroyed (79) 395 Value Destroyed (2077) 2077 Prototype IDs (52) 1040 Alien Tech Used (0) 0 Bonus (1172) 1172 TOTAL SCORE: 9184 Bonus ------- Follower Combat Kills 372 Entered DSFs 500 Aligned with FarCom 300 Cogmind --------- Core Integrity 0/1000 Matter 203/300 Energy 20/100 System Corruption 16% Temperature Cool (21) Movement Flying (32) Location -5/Factory Parts ------- > --- POWER (1) -------- (None) > --- PROPULSION (5) --- Cooled Nuclear Pulse Thruster > --- UTILITY (9) ------ Advanced Terrain Scan Processor Advanced Hacking Suite > --- WEAPON (2) ------- (None) > --- INVENTORY (5) ---- Improved Gravmag System Terrain Scan Processor Skeleton Box Improved Remote Datajack Peak State ------------ > --- POWER ------------ Neutrino Core > --- PROPULSION ------- Improved Gravmag System Gravmag Array Gravmag Array > --- UTILITY ---------- Large Storage Unit Improved Terrain Scanner Advanced Terrain Scan Processor ECM Suite Advanced Hacking Suite Advanced Hacking Suite Advanced Hacking Suite Advanced System Shield Advanced System Restoration Module > --- WEAPON ----------- Advanced Beam Cannon Heavy Flail > --- INVENTORY -------- Neutrino Core Wheel Improved Gravmag System Improved Gravmag System Improved Gravmag System Field Propulsion Drive High-capacity Battery Improved Energy Well Terrain Scan Processor Precision Energy Filter Skeleton Box Recalibrator Pulse Rifle Grenade Launcher Improved Remote Datajack [Rating: 82] Favorites ----------- Power Light Angular Momentum Engine Engine Light Angular Momentum Engine Power Core Neutrino Core Propulsion Armored Treads Treads Armored Treads Wheel Wheel Hover Unit Gravmag Array Flight Unit Cooled Nuclear Pulse Thruster Utility Hacking Suite Device ECM Suite Storage Large Storage Unit Processor Advanced Terrain Scan Processor Hackware Hacking Suite Protection Improved Light Armor Plating Weapon Heavy Flail Energy Gun Medium Laser Energy Cannon Advanced Beam Cannon Launcher Grenade Launcher Special Weapon Mining Laser Impact Weapon Heavy Flail Special Melee Weapon Datajack Build | -11 -10 -10 -10 -9 -8 -8 -8 -6 -6 -5 ------- Run | Yrd Mat Min Exi Min Mat Sto Rec Fac DSF Fac Slots Evolved 10 | . . . . . 4 . . 4 . 2 Power . | . . . . . . . . . . . Propulsion 3 | . . . . . . . . 3 . . Utility 7 | . . . . . 4 . . 1 . 2 Weapon . | . . . . . . . . . . . Parts Attached 76 | 9 7 7 . 1 14 13 1 . 5 19 Power 9 | 2 1 2 . . . 2 . . 1 1 Engine 7 | 2 1 2 . . . 2 . . . . Core 2 | . . . . . . . . . 1 1 Reactor . | . . . . . . . . . . . Propulsion 22 | 2 . 1 . . 3 3 . . 4 9 Treads 9 | 2 . 1 . . 3 3 . . . . Leg . | . . . . . . . . . . . Wheel 1 | . . . . . . . . . 1 . Hover 6 | . . . . . . . . . 3 3 Flight 6 | . . . . . . . . . . 6 Utility 28 | 2 3 1 . . 8 4 1 . . 9 Device 12 | 1 1 . . . 3 4 1 . . 2 Storage 4 | 1 2 . . . . . . . . 1 Processor 4 | . . . . . 3 . . . . 1 Hackware 7 | . . . . . 2 . . . . 5 Protection 1 | . . 1 . . . . . . . . Artifact . | . . . . . . . . . . . Weapon 17 | 3 3 3 . 1 3 4 . . . . Energy Gun 8 | 2 2 1 . 1 1 1 . . . . Energy Cannon 1 | . . . . . . 1 . . . . Ballistic Gun . | . . . . . . . . . . . Ballistic Cannon . | . . . . . . . . . . . Launcher 1 | . . . . . 1 . . . . . Special Weapon 3 | 1 1 1 . . . . . . . . Impact Weapon 2 | . . . . . 1 1 . . . . Slashing Weapon . | . . . . . . . . . . . Piercing Weapon . | . . . . . . . . . . . Special Melee Weapon 2 | . . 1 . . . 1 . . . . Unidentified Prototypes 3 | . . . . . . . . . . 3 Parts Lost 32 | . 2 1 . . 2 4 . . 1 22 Power 4 | . . . . . 1 1 . . . 2 Propulsion 14 | . . . . . . 2 . . . 12 Utility 6 | . 1 . . . . . . . . 5 Weapon 8 | . 1 1 . . 1 1 . . 1 3 Highest Loss Streak 19 | . 1 1 . . 1 3 . . 1 19 To Critical Strikes . | . . . . . . . . . . . Average Backups 13 | 5 10 14 15 15 14 14 15 15 14 13 Power . | . 1 1 1 1 1 . 1 1 1 . Propulsion 3 | 2 4 4 3 3 3 3 4 4 3 4 Utility 3 | . 1 4 6 6 3 3 3 3 3 4 Weapon 4 | 1 3 4 4 4 4 4 5 6 5 2 Tool/Special . | . . . . . . . . . . . Unused Backups 24 | . 4 3 2 . 3 3 . . 4 5 Power 3 | . . . . . 1 1 . . 1 . Propulsion 10 | . 3 . 1 . 2 1 . . 3 . Utility 2 | . . . . . . . . . . 2 Weapon 8 | . 1 3 1 . . 1 . . . 2 Tool/Special 1 | . . . . . . . . . . 1 Average Slot Usage (%) 96 | . 98 96 86 98 99 99 100 73 73 80 Engine 9 | . 14 14 14 14 8 9 9 6 1 . Treads 18 | . 27 28 28 28 18 17 18 13 10 . Hover 1 | . . . . . . . . . 3 15 Device 16 | . 12 6 14 14 20 18 18 13 13 10 Storage 9 | . 14 14 14 14 9 9 9 6 6 4 Processor 5 | . . . . . 6 9 9 6 6 9 Hackware 12 | . . . . . 17 18 18 13 13 21 Energy Gun 8 | . 14 15 . 12 8 8 9 6 3 . Special Weapon 2 | . 13 2 1 . . . . . . . Impact Weapon 4 | . . . . . 7 9 4 . . 4 Special Melee Weapon 2 | . . 6 14 14 1 . 4 6 3 . Peak Build Rating 82 | 7 8 17 15 17 32 37 35 35 57 82 Average Rating 28 | 5 7 13 14 16 29 32 34 35 38 69 On Entrance 23 | . 7 8 15 15 17 31 33 35 35 57 Avg Prop Armor Cover (%) 15 | . . . . . . . . . 19 7 Naked Turns . | . . . . . . . . . . . Heaviest Build 47 | 14 30 37 32 34 39 42 36 34 44 47 Greatest Support 50 | 40 40 40 40 40 44 44 42 42 50 50 Greatest Overweight (x) 4 | . . . . . . . . . 4 3 Average Overweight (x) . | . . . . . . . . . . . Largest Inventory Capacity 15 | 8 15 15 15 15 15 15 15 15 15 15 Average Capacity 14 | 7 13 15 15 15 15 15 15 15 15 14 Most Carried 15 | 6 15 15 15 15 15 15 15 15 15 15 Average Carried 13 | 5 10 14 14 15 14 14 15 15 14 13 Final Capacity 15 | 8 15 15 15 15 15 15 15 15 15 5 Final Carried 15 | 6 14 15 15 15 15 15 15 15 14 4 Class Distribution -------------------- 49% | Hacker-Assassin 30% | Mutant 8% | Hacker-Ninja 4% | Hacker-Mutant 4% | Commander-Assassin Dominant Class ---------------- Mutant | -10/Materials Mutant | -10/Mines Mutant | -10/Exiles Mutant | -9/Mines Hacker-Assassin | -8/Materials Hacker-Assassin | -8/Storage Hacker-Assassin | -8/Recycling Commander-Assassin | -6/Factory Hacker-Mutant | -6/DSF Hacker-Ninja | -5/Factory Resources | -11 -10 -10 -10 -9 -8 -8 -8 -6 -6 -5 ----------- Run | Yrd Mat Min Exi Min Mat Sto Rec Fac DSF Fac Matter Collected 1269 | 300 111 85 . 26 355 180 80 . 75 57 Remotely . | . . . . . . . . . . . Salvage Created 2747 | 86 606 71 . . 1013 795 105 . 50 21 Parts 135 | 13 28 5 . . 63 17 4 . 4 1 Haulers Intercepted 7 | . 2 . . . 5 . . . . . Recyclers Shooed 2 | 1 1 . . . . . . . . . Parts Field Recycled . | . . . . . . . . . . . Retrieved Matter . | . . . . . . . . . . . Parts Self-Destructed . | . . . . . . . . . . . Prevented . | . . . . . . . . . . . Parts Restored . | . . . . . . . . . . . Kills | -11 -10 -10 -10 -9 -8 -8 -8 -6 -6 -5 ------- Run | Yrd Mat Min Exi Min Mat Sto Rec Fac DSF Fac Combat Hostiles Destroyed 46 | . 9 3 . . 16 14 2 . 1 1 Melee 1 | . . . . . . . . . . 1 Guns 37 | . 7 3 . . 14 11 2 . . . Cannons 2 | . . . . . . 1 . . 1 . AOE 2 | . . . . . 2 . . . . . Classes Destroyed 14 | 1 6 . . . 4 2 . . 1 . Worker 3 | . 2 . . . 1 . . . . . Builder 8 | . . . . . 7 1 . . . . Tunneler 8 | 5 1 1 . . 1 . . . . . Hauler 7 | . 2 . . . 5 . . . . . Recycler 2 | . 2 . . . . . . . . . Mechanic 1 | . . . . . . 1 . . . . Operator 1 | . . . . . . 1 . . . . Watcher 3 | . 2 . . . 1 . . . . . Swarmer 9 | . 3 3 . . 3 . . . . . Grunt 25 | . 6 . . . 9 9 1 . . . Brawler 1 | . . . . . 1 . . . . . Duelist 1 | . . . . . 1 . . . . . Sentry 8 | . . . . . 2 5 1 . . . Programmer 2 | . . . . . . . . . 1 1 Best Kill Streak 10 | 2 3 3 . . 5 10 2 . 1 1 Combat Bots Only 9 | . 3 3 . . 5 9 2 . 1 1 Max Kills in Single Turn 1 | 1 1 1 . . 1 1 1 . 1 1 Gunslinging . | . . . . . . . . . . . Exploded 1 | . . . . . 1 . . . . . Melee 1 | . . . . . . . . . . 1 Uniques/NPCs Destroyed . | . . . . . . . . . . . Combat | -11 -10 -10 -10 -9 -8 -8 -8 -6 -6 -5 -------- Run | Yrd Mat Min Exi Min Mat Sto Rec Fac DSF Fac Hostile Shots Fired 506 | . 59 13 . . 94 88 11 . 23 218 Missed 170 | . 17 6 . . 26 28 3 . 6 84 Hits 336 | . 42 7 . . 68 60 8 . 17 134 Melee 2 | . . . . . 2 . . . . . Projectile 334 | . 42 7 . . 66 60 8 . 17 134 AOE 2 | . . . . . . . . . . 2 Critical Strikes 14 | . 1 . . . 5 3 1 . . 4 Part Disruptions 2 | . . . . . . . . . . 2 Damage Taken 5822 | . 597 58 . . 1041 923 114 . 273 2816 Core 1584 | . 142 20 . . 178 118 14 . 80 1032 Absorbed by Shields . | . . . . . . . . . . . Regen/Repaired (Parts) 242 | . 127 . . . 115 . . . . . Core Remaining (%) 67 | 100 . . . 35 . . 43 . 90 . Volleys Fired 361 | 16 125 9 . . 115 73 9 . 5 9 Largest 2 | 1 2 2 . . 2 1 1 . 1 1 Hottest 113 | 50 100 113 . . 86 68 61 . 68 68 Shots Fired 387 | 16 136 11 . . 128 73 9 . 5 9 Gun 338 | 16 117 11 . . 115 70 9 . . . Cannon 17 | . . . . . . 3 . . 5 9 Launcher 13 | . . . . . 13 . . . . . Special 19 | . 19 . . . . . . . . . Kinetic . | . . . . . . . . . . . Thermal 374 | 16 136 11 . . 115 73 9 . 5 9 Explosive 13 | . . . . . 13 . . . . . Electromagnetic . | . . . . . . . . . . . Robot Hit Streak 18 | 8 18 10 . . 10 14 5 . 7 9 Robot Miss Streak 2 | 1 2 1 . . 2 2 1 . . 2 Penetration Max . | . . . . . . . . . . . Secondary Targets . | . . . . . . . . . . . Shots Hit Robots 318 | 10 91 9 4 . 100 61 26 . 5 12 Core Hits 119 | 6 28 4 . . 51 24 3 . 2 1 Critical Kills . | . . . . . . . . . . . Critical Parts Destroyed 1 | . . . . . . 1 . . . . Critical Strikes 27 | . 8 . . . 6 12 1 . . . Burn 26 | . 8 . . . 6 11 1 . . . Smash 1 | . . . . . . 1 . . . . Melee Attacks 144 | . . . 4 . 50 33 20 . . 37 Impact 117 | . . . . . 46 33 1 . . 37 Slashing . | . . . . . . . . . . . Piercing . | . . . . . . . . . . . Sneak Attacks 28 | . . . 4 . 6 1 17 . . . Combat Hostiles . | . . . . . . . . . . . Follow-up Attacks . | . . . . . . . . . . . Damage Inflicted 5571 | 125 1221 138 . . 2125 1260 140 . 139 423 Guns 4043 | 125 1142 138 . . 1368 1130 140 . . . Cannons 360 | . . . . . . 42 . . 139 179 Explosions 475 | . 79 . . . 396 . . . . . Melee 691 | . . . . . 361 86 . . . 244 Ramming 2 | . . . . . . 2 . . . . Kinetic . | . . . . . . . . . . . Thermal 4403 | 125 1142 138 . . 1368 1172 140 . 139 179 Explosive 475 | . 79 . . . 396 . . . . . Electromagnetic . | . . . . . . . . . . . Impact 691 | . . . . . 361 86 . . . 244 Slashing . | . . . . . . . . . . . Piercing . | . . . . . . . . . . . Highest Corruption 16 | . 1 1 1 1 . . . . . 16 Average Corruption 1 | . 1 1 1 1 . . . . . 6 Corruption Purged 4 | . . . . . . . . . . 4 Corruption Blocked . | . . . . . . . . . . . Effects 35 | . 6 11 1 5 . . . . . 12 Message Errors 7 | . 2 4 . . . . . . . 1 Matter Fused 5 | . 2 1 . 1 . . . . . 1 Heat Flow Errors 4 | . . 2 . 1 . . . . . 1 Energy Discharges 10 | . 1 1 . 2 . . . . . 6 Parts Rejected 2 | . . . . . . . . . . 2 Data Loss (minor) 1 | . . 1 . . . . . . . . Data Loss (major) 3 | . 1 1 . 1 . . . . . . Misfires 1 | . . 1 . . . . . . . . Alerts 1 | . . . 1 . . . . . . . Misdirections 1 | . . . . . . . . . . 1 Overload Shots . | . . . . . . . . . . . Overflow Damage 244 | . . . . . 88 86 . . . 70 Projectiles . | . . . . . . . . . . . Explosions 4 | . . . . . 4 . . . . . Melee 240 | . . . . . 84 86 . . . 70 Knockbacks 3 | . . . . . 1 1 . . . 1 Impact 3 | . . . . . 1 1 . . . 1 Kinetic . | . . . . . . . . . . . Secondary . | . . . . . . . . . . . Self-Inflicted Damage 86 | . 86 . . . . . . . . . Shots 1 | . 1 . . . . . . . . . Rammed 1 | . . . . . . 1 . . . . Targets Rammed 1 | . . . . . . 1 . . . . Kicked . | . . . . . . . . . . . Crushed . | . . . . . . . . . . . Highest Temperature 285 | 50 285 233 . 240 255 124 99 . . 248 Average Temperature 53 | 19 53 73 . 122 56 34 49 . . 78 Received Heat Transfer 1452 | . 267 6 . . 522 522 63 . 27 45 Effects 1 | . . . . 1 . . . . . . Interference 1 | . . . . 1 . . . . . . Siege Activations . | . . . . . . . . . . . Martial Activations . | . . . . . . . . . . . Shielding Activations . | . . . . . . . . . . . Robots Disrupted . | . . . . . . . . . . . Combat Hostiles . | . . . . . . . . . . . Robots Corrupted 1 | . . . . . . 1 . . . . Combat Hostiles . | . . . . . . . . . . . Parts Fried 1 | . . . . . . 1 . . . . Impact Corruptions 10 | . . . . . 4 4 . . . 2 Robots Melted 5 | . 2 . . . 1 2 . . . . Combat Hostiles 4 | . 2 . . . . 2 . . . . Parts Melted 24 | 1 7 . . . 4 12 . . . . Heat Transferred 12136 | 370 3959 370 . . 3626 3034 333 . 185 259 Parts Sabotaged . | . . . . . . . . . . . Parts Stolen . | . . . . . . . . . . . Parts Stripped . | . . . . . . . . . . . Power Chain Reactions . | . . . . . . . . . . . Alert | -11 -10 -10 -10 -9 -8 -8 -8 -6 -6 -5 ------- Run | Yrd Mat Min Exi Min Mat Sto Rec Fac DSF Fac Maximum Alert Level 1 | . . . . . 1 . . . . . Low Security (%) 95 | 100 100 100 . 100 89 100 100 100 100 100 Level 1 4 | . . . . . 10 . . . . . Level 2 . | . . . . . . . . . . . Level 3 . | . . . . . . . . . . . Level 4 . | . . . . . . . . . . . Level 5 . | . . . . . . . . . . . High Security . | . . . . . . . . . . . Max Security . | . . . . . . . . . . . Peak Influence 293 | 5 72 69 . . 293 152 40 3 30 46 Initial 118 | . . 9 . . . 118 40 . 2 15 Average 33 | 1 15 4 . . 56 72 6 2 1 1 Influence Increases 2373 | 25 465 75 . . 698 790 95 3 55 167 Destroy 0b10 Robot/C 1220 | . 180 60 . . 400 440 80 . 40 20 Destroy 0b10 Robot/NC 180 | 25 45 5 . . 80 25 . . . . Destroy Leader 262 | . 38 10 . . 84 120 . . 10 . Allied During Kill 126 | . . . . . 12 99 10 . 5 . Trap Triggered on 0b10 10 | . . . . . 10 . . . . . Successful Hack 126 | . 62 . . . 21 25 4 3 . 11 Select Force Hacks 30 | . 30 . . . . . . . . . Disable Machine 135 | . 15 . . . 30 60 . . . 30 Destroy Structure 164 | . 35 . . . 61 21 1 . . 46 Lose Combat Pursuer 120 | . 60 . . . . . . . . 60 Influence Decreases 2341 | 25 439 101 . . 417 965 201 . 28 165 Entered New Map 262 | . . 17 . . . 163 66 . 1 15 Time Decay 1476 | 25 414 74 . . 300 417 135 . . 111 Lost Part 105 | . 10 10 . . 11 40 . . . 34 Lost Ally 290 | . . . . . 60 203 . . 27 . Purge Threat 208 | . 15 . . . 46 142 . . . 5 Squads Dispatched 25 | . 2 1 . . 5 7 . 1 1 8 Investigation 11 | . 2 1 . . 4 . . 1 . 3 Extermination 2 | . . . . . . . . . . 2 Reinforcement 7 | . . . . . 1 2 . . 1 3 Assault 2 | . . . . . . 2 . . . . Garrison 3 | . . . . . . 3 . . . . Intercept . | . . . . . . . . . . . Searches Triggered . | . . . . . . . . . . . Construction Impeded . | . . . . . . . . . . . Haulers Reinforced . | . . . . . . . . . . . Active Scanning Responses . | . . . . . . . . . . . Cargo Convoy Interrupts . | . . . . . . . . . . . Stealth | -11 -10 -10 -10 -9 -8 -8 -8 -6 -6 -5 --------- Run | Yrd Mat Min Exi Min Mat Sto Rec Fac DSF Fac Distress Signals 8 | . . . . . 2 4 . . . 2 Communications Jammed . | . . . . . . . . . . . Distress Signals . | . . . . . . . . . . . Times Spotted 121 | . 17 5 . . 43 18 2 . 8 28 Peak Tracking Total 12 | . 3 3 . . 6 6 2 . 3 12 Tactical Retreats 27 | . 3 . . . 8 3 . . 4 9 ECM-based Alert Blocks 43 | . . . . . 12 13 . . 6 12 Traps | -11 -10 -10 -10 -9 -8 -8 -8 -6 -6 -5 ------- Run | Yrd Mat Min Exi Min Mat Sto Rec Fac DSF Fac Traps Triggered 4 | . 2 . . . 2 . . . . . Indirectly . | . . . . . . . . . . . Trap Hack Attempts 27 | . . 23 . . 4 . . . . . Triggered . | . . . . . . . . . . . Disarmed . | . . . . . . . . . . . Reprogrammed 5 | . . 4 . . 1 . . . . . Reused 1 | . . . . . 1 . . . . . Traps Extracted . | . . . . . . . . . . . Installed . | . . . . . . . . . . . Triggered 1 | . . . . . 1 . . . . . Machines | -11 -10 -10 -10 -9 -8 -8 -8 -6 -6 -5 ---------- Run | Yrd Mat Min Exi Min Mat Sto Rec Fac DSF Fac Machines Disabled 9 | . 1 . . . 2 4 . . . 2 Max in Single Turn 1 | . 1 . . . 1 1 . . . 1 Garrison Access 4 | . . . . . 1 1 . . . 2 Machines Repaired . | . . . . . . . . . . . Machines Dismantled . | . . . . . . . . . . . Machines Sabotaged . | . . . . . . . . . . . Overloaded Fab Kills . | . . . . . . . . . . . Hacking | -11 -10 -10 -10 -9 -8 -8 -8 -6 -6 -5 --------- Run | Yrd Mat Min Exi Min Mat Sto Rec Fac DSF Fac Machines Accessed 52 | . 8 2 2 . 13 9 8 1 . 9 Terminals 34 | . 6 . . . 9 7 6 1 . 5 Fabricators 2 | . . . . . . . . . . 2 Repair Stations 3 | . 1 . . . 2 . . . . . Recycling Units 2 | . 1 . . . . 1 . . . . Scanalyzers 1 | . . . . . 1 . . . . . Garrison Access 4 | . . . . . 1 1 . . . 2 Total Hacks 172 | . 28 2 6 . 42 27 36 3 . 28 Successful 106 | . 14 2 6 . 23 16 29 1 . 15 Failed 64 | . 13 . . . 19 11 7 2 . 12 Catastrophic 9 | . 3 . . . 3 . 1 . . 2 Database Lockouts 2 | . 1 . . . . . . . . 1 Manual 78 | . 16 . 1 . 21 18 8 . . 14 Terminals 111 | . 24 . . . 31 24 12 3 . 17 Fabricators 7 | . . . . . . . . . . 7 Repair Stations 9 | . 3 . . . 6 . . . . . Recycling Units 2 | . 1 . . . . 1 . . . . Scanalyzers 4 | . . . . . 4 . . . . . Garrison Access 7 | . . . . . 1 2 . . . 4 Terminal Hacks 81 | . 9 2 6 . 14 13 29 1 . 7 Record 32 | . . . 5 . . . 24 . . 3 Part Schematic 5 | . . . . . 1 2 1 . . 1 Robot Analysis 3 | . 1 . . . . 1 1 . . . Prototype ID Bank 7 | . 3 . . . 2 2 . . . . Open Door 3 | . . 2 . . . 1 . . . . Open DSF 1 | . . . . . . . . 1 . . Branch Access Points 2 | . . . . . 1 . 1 . . . Emergency Access Points 1 | . . . . . 1 . . . . . Terminal Index 2 | . 1 . . . 1 . . . . . Fabricator Index 1 | . . . . . . . . . . 1 Scanalyzer Index 1 | . . . . . . 1 . . . . Alert Level 4 | . . . . . 2 1 1 . . . Unreport Threat 8 | . 1 . . . 3 2 1 . . 1 Locate Traps 1 | . . . . . 1 . . . . . Dispatch Records 2 | . . . . . 1 1 . . . . Maintenance Status 1 | . . . . . . 1 . . . . Patrol Status 1 | . 1 . . . . . . . . . Transport Status 1 | . 1 . . . . . . . . . Reinforcement Status 1 | . . . . . . 1 . . . . Recall Investigation 1 | . . . . . . . . . . 1 Hauler Manifests 1 | . 1 . . . . . . . . . Zone Layout 1 | . . . . . 1 . . . . . Proto ID Catalog 1 | . . . 1 . . . . . . . Fabricator Hacks 5 | . . . . . . . . . . 5 Network Status 1 | . . . . . . . . . . 1 Load Schematic 2 | . . . . . . . . . . 2 Build 2 | . . . . . . . . . . 2 Repair Station Hacks 6 | . 3 . . . 3 . . . . . Scan Component 3 | . 1 . . . 2 . . . . . Repair 2 | . 1 . . . 1 . . . . . Refit 1 | . 1 . . . . . . . . . Recycling Unit Hacks 1 | . . . . . . 1 . . . . Report Inventory 1 | . . . . . . 1 . . . . Scanalyzer 4 | . . . . . 4 . . . . . Insert Component 3 | . . . . . 3 . . . . . Retrieve Study 1 | . . . . . 1 . . . . . Garrison Access Hacks 4 | . . . . . 1 1 . . . 2 Seal Access 4 | . . . . . 1 1 . . . 2 Unauthorized Hacks 5 | . 2 . . . 1 1 . . . 1 Terminals 3 | . 1 . . . 1 1 . . . . Operators 3 | . 1 . . . 1 1 . . . . Fabricators 1 | . . . . . . . . . . 1 Report 1 | . . . . . . . . . . 1 Repair Stations . | . . . . . . . . . . . Recycling Units 1 | . 1 . . . . . . . . . Tunnel 1 | . 1 . . . . . . . . . Scanalyzers . | . . . . . . . . . . . Garrison Access . | . . . . . . . . . . . Data Cores Recovered . | . . . . . . . . . . . Used . | . . . . . . . . . . . Hacking Detections 38 | . 6 . . . 9 8 6 1 . 8 Full Trace Events 7 | . . . . . 3 . . 1 . 3 Feedback Events . | . . . . . . . . . . . Feedback Blocked . | . . . . . . . . . . . Robot Schematics Acquired . | . . . . . . . . . . . Robots Built . | . . . . . . . . . . . Authchips . | . . . . . . . . . . . Time . | . . . . . . . . . . . Total Robot Build Rating . | . . . . . . . . . . . Part Schematics Acquired 5 | . . . . . 1 2 1 . . 1 Parts Built 2 | . . . . . . . . . . 2 Authchips . | . . . . . . . . . . . Time 212 | . . . . . . . . . . 212 Total Part Build Rating 12 | . . . . . . . . . . 12 Part Studies Acquired 1 | . . . . . 1 . . . . . Parts Repaired 2 | . 1 . . . 1 . . . . . Time 64 | . 26 . . . 38 . . . . . Parts Recycled . | . . . . . . . . . . . Recycled Matter . | . . . . . . . . . . . Retrieved Matter . | . . . . . . . . . . . Retrieved Components . | . . . . . . . . . . . Parts Scanalyzed . | . . . . . . . . . . . Part Schematics Acquired . | . . . . . . . . . . . Parts Damaged . | . . . . . . . . . . . Bothacking | -11 -10 -10 -10 -9 -8 -8 -8 -6 -6 -5 ------------ Run | Yrd Mat Min Exi Min Mat Sto Rec Fac DSF Fac Used RIF Installer . | . . . . . . . . . . . Robots Hacked 9 | . . . 4 . 3 . 2 . . . Non-combat 7 | . . . 3 . 3 . 1 . . . Combat 2 | . . . 1 . . . 1 . . . Robot Hacks Applied 10 | . . . 4 . 4 . 2 . . . parse_system 6 | . . . 4 . 1 . 1 . . . no_distress 2 | . . . . . 2 . . . . . find_recycling 1 | . . . . . . . 1 . . . check_alert 1 | . . . . . 1 . . . . . Relay Couplers Released 1 | . . . . . . 1 . . . . Machine Destruction 1 | . . . . . . 1 . . . . Fabnet Peak Effective % . | . . . . . . . . . . . Robots Rewired 10 | . . . . . . . 10 . . . Allies Hacked . | . . . . . . . . . . . Hacks Repelled . | . . . . . . . . . . . Allies | -11 -10 -10 -10 -9 -8 -8 -8 -6 -6 -5 -------- Run | Yrd Mat Min Exi Min Mat Sto Rec Fac DSF Fac Total Allies 25 | . . . . 3 . 12 10 . . . Largest Group 10 | . . . . 3 3 10 10 10 10 . Highest-Rated Group 173 | . . . . 40 40 173 160 160 160 . Highest-Rated Ally 31 | . . . . 16 16 31 27 27 27 . Total Orders 3 | . . . . . . 2 . . 1 . ROAM 2 | . . . . . . 1 . . 1 . EXPLORE 1 | . . . . . . 1 . . . . Ally Attacks 139 | . . . . . 27 102 5 . 5 . Total Damage 1725 | . . . . . 236 1332 74 . 83 . Kills 18 | . . . . . 5 10 2 . 1 . Allies Corrupted 1 | . . . . . . . . . 1 . Allies Melted . | . . . . . . . . . . . Intel | -11 -10 -10 -10 -9 -8 -8 -8 -6 -6 -5 ------- Run | Yrd Mat Min Exi Min Mat Sto Rec Fac DSF Fac Active Infowar (turns) 11372 | 110 1462 477 557 385 4556 1287 1158 16 255 1109 Terrain 7844 | . . . . . 4284 1062 1158 16 255 1069 Seismic 3263 | 110 1462 477 557 385 272 . . . . . ECM 8340 | . . . . . 4515 1287 1158 16 255 1109 Robot Analysis Total 3 | . 1 . . . . 1 1 . . . Derelict Logs Recovered 3 | . . 2 . 1 . . . . . . Drone Launches 16 | . . . . . . 16 . . . . Drone Recoveries 2 | . . . . . . 2 . . . . Exploration | -11 -10 -10 -10 -9 -8 -8 -8 -6 -6 -5 ------------- Run | Yrd Mat Min Exi Min Mat Sto Rec Fac DSF Fac Turns Passed 12256 | 197 1576 1028 557 385 4556 1287 1158 16 255 1241 Spaces Moved 7322 | 93 729 540 332 233 2198 573 703 11 170 1740 Core 65 | 3 . . . . . . . . . 62 Treads 5485 | 90 729 540 332 233 2198 573 703 11 76 . Legs . | . . . . . . . . . . . Wheels 86 | . . . . . . . . . 54 32 Hover 1573 | . . . . . . . . . 40 1533 Flight 113 | . . . . . . . . . . 113 Fastest Speed 29 | 50 160 160 165 165 145 145 157 157 52 29 Average Speed 134 | 156 160 163 165 165 165 149 157 157 124 52 Slowest Speed 170 | 160 160 165 165 165 170 157 157 157 157 125 Overloaded Moves 4 | . . . . . . . . . . 4 Propulsion Burnouts . | . . . . . . . . . . . Robots Hopped . | . . . . . . . . . . . Potential Cave-ins 6 | . . . . . . 3 . . . 3 Cave-ins Triggered . | . . . . . . . . . . . Exploration Rate (%) 65 | 6 61 95 71 67 75 82 93 . 73 35 Regions Visited 10 Branch Regions 5 Pre-discovered Areas 2 | . 1 . 1 . . . . . . . Known Exits Taken 3 | . . . . . 1 1 . 1 . . Unknown Exits Taken 6 | 1 1 1 1 1 . . 1 . . . Scrap Searched 4 | . . 3 . 1 . . . . . . Spaces Dug 103 | . 19 . . . 32 24 1 . . 27 Terrain Destroyed 154 | . 34 . . . 68 24 1 . . 27 Melee 84 | . . . . . 32 24 1 . . 27 Projectile 19 | . 19 . . . . . . . . . AOE 51 | . 15 . . . 36 . . . . . Terrain Rammed . | . . . . . . . . . . . Walls Destroyed . | . . . . . . . . . . . Machines Disabled . | . . . . . . . . . . . Actions | -11 -10 -10 -10 -9 -8 -8 -8 -6 -6 -5 --------- Run | Yrd Mat Min Exi Min Mat Sto Rec Fac DSF Fac Total 9114 | 125 970 675 340 233 2915 881 745 10 209 2011 Wait 1031 | . 84 83 . . 505 156 7 . 14 182 Move 7312 | 92 728 539 331 232 2197 572 702 10 169 1740 Hop . | . . . . . . . . . . . Pick Up 54 | 5 12 6 1 . 12 9 . . 4 5 Fast Attach 29 | 8 3 1 . 1 . 2 . . 2 12 Attach 23 | 1 . . . . 7 4 . . 2 9 Detach 8 | 2 1 . 1 . . . . . 2 2 Swap 60 | 1 7 7 1 . 16 14 6 . 4 4 Drop 56 | . 10 7 2 . 9 10 1 . 6 11 Fire 361 | 16 125 9 . . 115 73 9 . 5 9 Melee 144 | . . . 4 . 50 33 20 . . 37 Ram . | . . . . . . . . . . . Kick . | . . . . . . . . . . . Crush 1 | . . . . . . 1 . . . . Escape Stasis . | . . . . . . . . . . . Rewire 1 | . . . . . . . . . 1 . Trap 27 | . . 23 . . 4 . . . . . Miscellaneous 7 | . . . . . . 7 . . . . Route ------- -11/Scrapyard -10/Materials (discovered 4 exits: [*Mat x3] / *Min) -10/Mines (discovered 3 exits: [*Mat x2] / *Exi) -10/Exiles -9/Mines -8/Materials (discovered 4 exits: *Fac x2 / *Sto x2) -8/Storage (discovered 2 exits: *Fac / *Rec) -8/Recycling (discovered 2 exits: *Fac / [*Scr]) -6/Factory -6/DSF -5/Factory (discovered 3 exits: [*Fac x2] / [Upp]) History --------- Turn | Location | Event 10 | -11/Scrapyard | Discovered new exit (range 15) 198 | -11/Scrapyard | Entered Materials 301 | -10/Materials | Discovered new exit (range 15) 338 | -10/Materials | Build established: Mutant 708 | -10/Materials | Discovered new exit (range 7) 927 | -10/Materials | Discovered new exit (range 16) 986 | -10/Materials | Central database locked down 1287 | -10/Materials | Discovered new exit (range 9) 1308 | -10/Materials | Core integrity fell below 50% 1612 | -10/Materials | Repaired Lgt. Treads 1774 | -10/Materials | Entered Mines 1779 | -10/Mines | Met a Derelict bent on vengeance 2019 | -10/Mines | Met a Derelict shopkeep closing up shop 2188 | -10/Mines | Learned 2 Materials zone layouts 2193 | -10/Mines | Found a damaged Exp. Sensor Array with a note attached 2257 | -10/Mines | Met a Derelict who couldn't figure out how to use a Trap Extractor 2421 | -10/Mines | Discovered new exit (range 10) 2477 | -10/Mines | Discovered new exit (range 6) 2793 | -10/Mines | Deemed a non-threat by the Exiles lab entrance 2795 | -10/Mines | Discovered new exit (range 5) 2802 | -10/Mines | Entered Exiles 2845 | -10/Exiles | Met 8R-AWN 2876 | -10/Exiles | Met EX-HEX 2942 | -10/Exiles | Met EX-DEC 2950 | -10/Exiles | Learned location of Zion (-7) 3115 | -10/Exiles | Met EX-BIN 3146 | -10/Exiles | Aligned with FarCom system 3148 | -10/Exiles | Given EX-Vault access code 3189 | -10/Exiles | Opened EX-Vault 3203 | -10/Exiles | Found Skeleton Box 3235 | -10/Exiles | Warned to stay clear of 0b10 Research branches 3340 | -10/Exiles | Discovered new exit (range 14) 3359 | -10/Exiles | Left Exiles lab with Skeleton Box 3359 | -10/Exiles | Entered Mines 3627 | -9/Mines | Learned location of 1 exit from Materials 3706 | -9/Mines | Assisted by bots powering up and referring to "LRC-V3" 3731 | -9/Mines | Discovered new exit (range 7) 3744 | -9/Mines | Entered Materials 3744 | -8/Materials | Accompanied by 3 allies 3744 | -8/Materials | Evolved 4 slots: Utility x4 3745 | -8/Materials | Identified exit to Factory 3926 | -8/Materials | Lost 3 allies 4312 | -8/Materials | Build established: Hacker-Assassin 5976 | -8/Materials | Identified exit to Storage 7799 | -8/Materials | Discovered exit to Factory (range 11) 7805 | -8/Materials | Repaired Hvy. Flail 8300 | -8/Materials | Entered Storage 8301 | -8/Storage | Identified exit to Recycling 8475 | -8/Storage | Met a pair of Derelict thieves 8621 | -8/Storage | Assisted by bots powering up and referring to "LRC-V3" 8705 | -8/Storage | Garrison activated, responded to threat 8740 | -8/Storage | Lost 3 allies 8924 | -8/Storage | Discovered exit to Factory (range 16) 9034 | -8/Storage | Lost 12 allies 9072 | -8/Storage | Core integrity fell below 50% 9108 | -8/Storage | Lost 3 parts (1p2n) 9134 | -8/Storage | Destroyed 9 combat bots 9263 | -8/Storage | Remotely autohacked Sealed Heavy Doors 9581 | -8/Storage | Remotely autohacked Sealed Blast Doors 9587 | -8/Storage | Entered Recycling 9646 | -8/Recycling | Scanned before Scraplab entrance 9694 | -8/Recycling | Discovered new exit (range 4) 9730 | -8/Recycling | Entered Scraplab 10694 | -8/Recycling | Build established: Commander-Assassin 10714 | -8/Recycling | Discovered new exit (range 16) 10745 | -8/Recycling | Entered Factory 10745 | -6/Factory | Accompanied by 10 allies 10745 | -6/Factory | Evolved 4 slots: Propulsion x3, Utility x1 10750 | -6/Factory | Identified exit to DSF 10761 | -6/Factory | Entered DSF 10761 | -6/DSF | Accompanied by 10 allies 10762 | -6/DSF | Joined Warlord attack on 0b10 via DSF 10789 | -6/DSF | Additional patrols routed to DSF 10889 | -6/DSF | Lost 16 allies 10955 | -6/DSF | Discovered new exit (range 14) 11016 | -6/DSF | Entered Factory 11016 | -5/Factory | Evolved 2 slots: Utility x2 11185 | -5/Factory | Central database locked down 11258 | -5/Factory | Build established: Hacker-Ninja 11360 | -5/Factory | Fabricated Adv. Hacking Suite (x1) 11540 | -5/Factory | Fabricated Adv. Hacking Suite (x1) 11689 | -5/Factory | Discovered new exit (range 10) 11720 | -5/Factory | Discovered new exit (range 5) 12042 | -5/Factory | Discovered new exit (range 16) 12043 | -5/Factory | Lost 3 parts (2n1w) 12144 | -5/Factory | System corruption reached 10% 12191 | -5/Factory | Core integrity fell below 50% 12208 | -5/Factory | Spotted B-75 Beast 12221 | -5/Factory | Core integrity fell below 20% 12257 | -5/Factory | Destroyed by P-70 Sage via exploding Fusion Modulator Last Messages --------------- 12216_ Cld. Nuclear Pulse Thruster destroyed. 12218_ Acquired Cld. Nuclear Pulse Thruster. 12220_ Acquired 26 matter. 12220_ S-27 Virus destroyed. 12220_ Slug penetrates Matter Pump. 12220_ Matter Pump disabled. 12220_ Slug penetrates Wall. 12220_ Acquired 5 matter. 12223_ Penetrated by Slug. 12223_ Cld. Nuclear Pulse Thruster destroyed. 12223_ Penetrated by Slug. 12234_ System corrupted: Heat flow error (+282). 12234_ Connecting with Terminal... 12234_ ALERT: Suspicious activity at Terminal F008. Dispatching Investigation squad. 12237_ Adv. Hacking Suite destroyed. 12252_ YX/N3OVJ4F=,6 O6WT7KIXSVKBK 12255_ Cld. Nuclear Pulse Thruster destroyed. 12257_ Fusion Modulator explodes. Map ----- +----------------------------------------------------+ | # #???? ????????????????????# # " | | """ # # #???????????????????# #! " | | """ # + ??????????????????????# # " | | """ + # ? ?????????????????????# # | | "" # # ??????????????????????# #### | | """ # # ?????????????????????# #??? | | """ ##### # ????????????????????# #??? | | """ ###?# #?? ?????????????????????# #??? | | ##?## / ?? ??????????????????????# ??? | | #??## #?##?#?#?????????????????????# ??? | | ######?#?? #??#????????????????????????? """ ??? | | #????##?#??#??#????????????????????????? """ "?? | | ##?###### #???#?#??????????#+#?????????# """ ??? | | ###??####??#???????????????# #?????????# ? | | ##?####?#????#???????????### ########### """ ""? | | ###????????????#?????????# Y """ """ | | #?#???###????????????????# """ """ | | ###????##??#?????????????# | | #?####?#?????????????????# h """ """ | | #???#????????????????????# p """ """ | | #???#??##?????????????####+#m########### """ """ | | ## ??????#??????????# p #???# | | ?????????????????# #???# | |